[Event "37th ECCC 2022"]
[Site "Mayrhofen"]
[Date "2022.10.06"]
[Round "4.62"]
[White "Neugebauer, Martin"]
[Black "Decoster, Frederic"]
[Result "1-0"]
[ECO "C54"]
[WhiteElo "2517"]
[BlackElo "2314"]
[Annotator "TA"]
[PlyCount "65"]
[EventDate "2022.10.03"]
[EventType "team-tourn"]
[EventCountry "AUT"]
[SourceTitle "playchess.com"]
[Source "ChessBase"]
[SourceQuality "1"]
[TimeControl "40/5400+30:1800+30"]

{[%evp 10,65,16,21,14,8,13,5,1,7,25,11,8,4,6,4,8,4,20,20,16,15,15,13,16,-10,21,22,17,22,22,10,48,24,45,61,58,58,66,67,40,43,52,22,0,0,112,106,102,95,683,323,689,689,630,655,837,818]} 1. e4 {[%emt 0:00:06]} e5 {[%emt 0:00:08]} 2. Nf3 {[%emt 0:00:29]} Nc6 {[%emt 0:00:10]} 3. Bc4 {[%emt 0:03:09]} Bc5 {[%emt 0:00:11]} 4. c3 {[%emt 0:00:54]} Nf6 {[%emt 0:00:23]} 5. d3 {[%emt 0:00:12]} d6 {[%emt 0:00:32]} 6. O-O {[%emt 0:01:12]} a5 {[%emt 0:00:15] C54: Giuoco Piano: 4 c3 Nf6, main lines with 5 d4 and 5 d3.} 7. Re1 {[%emt 0:03:22]} O-O {[%emt 0:01:38]} 8. Bb3 {[%emt 0:01:11]} Ng4 {[%emt 0:17:12] The position is equal.} 9. Re2 {[%emt 0:06:53] [#]} Ba7 $146 {[%emt 0:12:19]} ({Predecessor:} 9... Nf6 10. h3 h6 11. Nbd2 Nh7 12. Nf1 Qf6 13. N1h2 Qg6 14. Kh1 Qf6 15. a4 Bb6 {½-½ (54) Hofer,R (2391)-Eldridge,M (2382) ICCF email 2017}) 10. Nbd2 {[%emt 0:19:38][%cal Bb1d2,Bd2f1,Bf1e3,Be3f5][%mdl 32]} Be6 {[%emt 0:09:00]} 11. Nf1 {[%emt 0:07:25]} Bxb3 {[%emt 0:07:27]} 12. Qxb3 {[%emt 0:04:56]} a4 {[%emt 0:00:32]} 13. Qc2 {[%emt 0:00:19]} (13. Qxb7 $2 Qd7 14. h3 Nf6 $19) 13... h6 {[%emt 0:07:27] Inhibits Bg5.} 14. h3 {[%emt 0:03:46]} Nf6 {[%emt 0:00:41]} 15. Be3 {[%emt 0:00:07]} Bxe3 {[%emt 0:05:47]} 16. Nxe3 Re8 {[%emt 0:03:45]} 17. Nf5 {[%emt 0:07:00]} Kh7 {[%emt 0:08:13]} 18. d4 {[%emt 0:05:44]} g6 {[%emt 0:01:15]} 19. Ng3 {[%emt 0:02:09]} Kg7 {[%emt 0:01:20]} 20. Rd1 {[%emt 0:01:15]} Qb8 {[%emt 0:02:12]} 21. Qd2 {[%emt 0:06:19]} Qa7 {[%emt 0:02:13]} 22. Nh4 {[%emt 0:01:23]} Ne7 {[%emt 0:08:44] Prevents Nhf5+.} 23. f4 {[%emt 0:00:56]} Qa5 {[%emt 0:04:04]} 24. fxe5 {[%emt 0:07:27]} dxe5 {[%emt 0:00:17]} 25. Rf1 {[%emt 0:00:21]} Ra6 {[%emt 0:02:33]} 26. Ref2 {[%emt 0:00:21]} exd4 $1 {[%emt 0:00:54]} 27. Qxd4 {[%emt 0:14:15][%cal Rf2f6]} Qb6 {[%emt 0:02:29] [#]} (27... Rd6 $1 $11 {keeps the balance.} 28. Qe3 (28. Rxf6 $2 Rxd4 29. Rxf7+ Kg8 $19) (28. Qc4 Rc6 $11) 28... Qe5) 28. e5 $1 $36 {[%emt 0:01:24][%cal Be4e5,Be5f6][%mdl 2080] White is really pushing. White has more active pieces.} ({But not} 28. Qc4 $6 Nc6 $11) 28... Qxd4 {[%emt 0:01:38]} 29. cxd4 {[%emt 0:00:02]} Nfg8 {[%emt 0:01:02][%mdl 8192] Black cannot hold the game after this.} (29... Nfd5 $16) 30. Rxf7+ $18 {[%emt 0:00:07]} Kh8 {[%emt 0:00:01]} 31. Ne4 {[%emt 0:00:33] White is clearly winning.} g5 {[%emt 0:00:51]} 32. Nf6 {[%emt 0:00:10]} Nxf6 {[%emt 0:00:17]} 33. exf6 {[%emt 0:00:05] Weighted Error Value: White=0.05 (flawless) /Black=0.32} ({Not} 33. Rxe7 Rxe7 34. Ng6+ Kg7 35. Nxe7 (35. exf6+ Kxg6 36. fxe7 Re6 $11) 35... Nd7 $18) 1-0

[Event "37th ECCC 2022"]
[Site "Mayrhofen"]
[Date "2022.10.06"]
[Round "4.63"]
[White "Meulders, Richard"]
[Black "Polak, Tomas"]
[Result "0-1"]
[ECO "A45"]
[WhiteElo "2220"]
[BlackElo "2502"]
[Annotator "TA"]
[PlyCount "60"]
[EventDate "2022.10.03"]
[EventType "team-tourn"]
[EventCountry "AUT"]
[SourceTitle "playchess.com"]
[Source "ChessBase"]
[SourceQuality "1"]
[TimeControl "40/5400+30:1800+30"]

{[%evp 14,60,21,0,22,-10,0,-45,-27,-37,-40,-64,-50,-33,-25,-44,-37,-132,-127,-121,-113,-97,-96,-94,-93,-88,-109,-470,-473,-473,-463,-504,-492,-509,-497,-517,-515,-511,-506,-479,-458,-685,-683,-678,-680,-665,-597,-690,-685]} 1. d4 {[%emt 0:00:08]} Nf6 {[%emt 0:00:14]} 2. Bg5 {[%emt 0:00:15]} e6 {[%emt 0:00:57]} 3. e4 {[%emt 0:00:28]} h6 {[%emt 0:00:50]} 4. Bxf6 {[%emt 0:00:29]} Qxf6 {[%emt 0:00:05]} 5. Nf3 {[%emt 0:01:15]} d6 {[%emt 0:02:59]} 6. Nc3 {[%emt 0:00:56][%cal Bb1c3,Bc3d5,Bd5f4][%mdl 32]} Nd7 {[%emt 0:05:38]} 7. Qd2 {[%emt 0:16:07]} a6 {[%emt 0:06:12]} 8. O-O-O {[%emt 0:08:23]} Qe7 {[%emt 0:06:07] A46: 1 d4 Nf6 2 Nf3 e6: Torre, London and Colle Systems.} 9. h4 {[%emt 0:08:39]} g6 {[%emt 0:01:58]} 10. Re1 {[%emt 0:14:44]} Bg7 {[%emt 0:03:54] Black is slightly better.} 11. Nd5 {[%emt 0:06:55]} Qd8 {[%emt 0:00:10] [#]} (11... exd5 12. exd5 Ne5 13. dxe5 $11) 12. Nf4 $146 {[%emt 0:00:16]} ({Predecessor:} 12. Ne3 b5 13. Bd3 c5 14. c3 Bb7 15. d5 e5 16. h5 c4 17. Bc2 Bf6 18. hxg6 fxg6 {1-0 (36) Kogan,A (2544)-Kveinys,A (2545) Puhajarve 2017}) 12... c5 {[%emt 0:07:48]} 13. dxc5 {[%emt 0:06:01]} Nxc5 {[%emt 0:05:31]} 14. e5 {[%emt 0:01:07]} O-O {[%emt 0:10:11]} 15. Bd3 {[%emt 0:05:28]} (15. Qxd6 $15 Qxd6 16. exd6) 15... dxe5 $17 {[%emt 0:18:52]} 16. Nxe5 {[%emt 0:01:55]} Qd4 {[%emt 0:03:57]} 17. Qe3 {[%emt 0:01:05]} (17. c3 Qd6 18. Bxg6 Qxd2+ 19. Kxd2 fxg6 20. Nexg6 Rf6 $19) 17... Rd8 {[%emt 0:02:32]} ({Don't play} 17... Qb4 $6 18. c3 Qb6 19. Bc2 $11) 18. g3 {[%emt 0:05:58]} b5 {[%emt 0:02:55]} ({Reject} 18... Qb4 $6 19. c3 Nxd3+ 20. Nfxd3 $11) 19. Qxd4 {[%emt 0:00:51]} Rxd4 {[%emt 0:00:06]} 20. c3 $2 {[%emt 0:04:00][%mdl 8192] [#] Loses the game.} (20. Re3 $17 {is more resistant.}) 20... Rxf4 $1 $19 {[%emt 0:01:28][%mdl 512] Black is clearly winning.} 21. gxf4 {[%emt 0:00:51]} Bxe5 {[%emt 0:00:08]} 22. Bc2 {[%emt 0:00:22]} Bxf4+ {[%emt 0:00:23]} 23. Kb1 {[%emt 0:00:04]} Bb7 {[%emt 0:04:20]} 24. Rhg1 {[%emt 0:00:06]} Bf3 {[%emt 0:00:29]} 25. Bd1 {[%emt 0:02:16]} Bd5 {[%emt 0:00:46]} 26. Bc2 {[%emt 0:01:00]} Kg7 {[%emt 0:01:38]} 27. b4 {[%emt 0:04:26]} (27. Rg4 $142 e5 28. Rgg1) 27... Na4 {[%emt 0:00:57]} 28. Bxa4 {[%emt 0:00:08]} bxa4 {[%emt 0:00:04]} 29. Kb2 {[%emt 0:00:22]} Bf3 {[%emt 0:00:55] Against Rg4} 30. Ka3 {[%emt 0:01:21]} Rc8 {[%emt 0:00:53] Weighted Error Value: White=0.56/Black=0.09 (flawless)} 0-1

[Event "37th ECCC 2022"]
[Site "Mayrhofen"]
[Date "2022.10.06"]
[Round "4.64"]
[White "Kusa, Jakub"]
[Black "Maenhout, Thibaut"]
[Result "1-0"]
[ECO "A57"]
[WhiteElo "2360"]
[BlackElo "2397"]
[Annotator "TA"]
[PlyCount "59"]
[EventDate "2022.10.03"]
[EventType "team-tourn"]
[EventCountry "AUT"]
[SourceTitle "playchess.com"]
[Source "ChessBase"]
[SourceQuality "1"]
[TimeControl "40/5400+30:1800+30"]

{[%evp 21,59,20,23,16,44,41,40,0,6,3,15,-14,-7,-13,0,-17,-14,-16,-21,-21,-21,-18,-17,-19,0,-3,-4,0,0,0,70,80,255,248,243,252,677,677,659,637]} 1. d4 {[%emt 0:00:04]} Nf6 {[%emt 0:00:06]} 2. c4 {[%emt 0:00:11]} c5 {[%emt 0:00:06]} 3. d5 {[%emt 0:00:17]} b5 {[%emt 0:00:06]} 4. cxb5 {[%emt 0:00:25]} a6 {[%emt 0:00:08]} 5. b6 {[%emt 0:00:16]} e6 {[%emt 0:00:06]} 6. Nc3 {[%emt 0:00:32]} Nxd5 {[%emt 0:00:09]} 7. Nxd5 {[%emt 0:00:29]} exd5 {[%emt 0:00:06]} 8. Qxd5 {[%emt 0:00:29]} Nc6 {[%emt 0:00:05]} 9. Nf3 {[%emt 0:00:49]} Rb8 {[%emt 0:00:08]} 10. e4 {[%emt 0:01:01]} Be7 {[%emt 0:00:06]} 11. Bc4 {[%emt 0:01:27]} O-O {[%emt 0:00:07]} 12. Qh5 {[%emt 0:00:28] A57: Benko/Volga Gambit.} Qe8 {[%emt 0:20:00]} 13. O-O {[%emt 0:05:26] [#]} d6 $146 {[%emt 0:03:21]} ({Predecessor:} 13... Rxb6 14. e5 Bb7 15. Bd2 Nd4 16. Nxd4 cxd4 17. Bd3 g6 18. Qg4 d6 19. Rfe1 dxe5 20. Rxe5 {1-0 (40) Kononenko,T (2343)-Borisova,E (2156) St Petersburg 2003}) 14. Bf4 {[%emt 0:06:47] White is slightly better.} Be6 {[%emt 0:04:05]} 15. b3 {[%emt 0:11:21]} ({Much worse is} 15. Bxa6 Rxb6 16. Be2 (16. Bd3 c4 $15) 16... Rxb2 $17) 15... Rxb6 {[%emt 0:02:40]} 16. Rad1 {[%emt 0:04:16]} Bxc4 {[%emt 0:08:22]} 17. bxc4 {[%emt 0:00:42]} Na5 {[%emt 0:02:23]} 18. Qd5 {[%emt 0:10:14]} Qa4 {[%emt 0:04:56][%csl LRa2,LRc4]} 19. Rc1 {[%emt 0:04:07]} Nc6 {[%emt 0:07:54]} 20. Qd2 {[%emt 0:04:46]} ({Don't play} 20. Bxd6 Nb4 21. Bxe7 Nxd5 22. Bxf8 Nf4 23. Bxc5 Ne2+ 24. Kh1 Nxc1 25. Bxb6 Qxc4 $17) 20... Rd8 {[%emt 0:05:38]} 21. Rfd1 {[%emt 0:03:58]} Bf8 {[%emt 0:15:05]} 22. h3 {[%emt 0:08:58]} Nb4 {[%emt 0:02:12]} 23. Rb1 {[%emt 0:07:11]} Re8 {[%emt 0:04:10]} 24. Re1 $1 {[%emt 0:04:09][%cal Bd1e1,Be1e3,Be3b3,Bb3b6,Bb6b8][%mdl 32]} h6 {[%emt 0:02:01]} 25. Re3 {[%emt 0:04:24]} Nd5 {[%emt 0:00:21]} 26. Reb3 $14 {[%emt 0:01:10]} Nxf4 {[%emt 0:05:29] [#] Loses the game.} (26... Nb4 $16) 27. Rxb6 $18 {[%emt 0:01:06]} Rxe4 {[%emt 0:03:31]} 28. Rb8 {[%emt 0:01:13]} Qxc4 $2 {[%emt 0:01:56]} (28... Ne6 29. Qxd6 Qc2 30. Qxa6 Rxc4) 29. Qxd6 $1 {[%emt 0:01:58]} Ne6 {[%emt 0:00:27]} 30. Nd2 {[%emt 0:01:05][%csl LRc4,LRe4] Weighted Error Value: White=0.08 (flawless) /Black=0.44} 1-0

[Event "37th ECCC 2022"]
[Site "Mayrhofen"]
[Date "2022.10.06"]
[Round "4.65"]
[White "Boucquet, Emile"]
[Black "Roubalik, Jakub"]
[Result "0-1"]
[ECO "C84"]
[WhiteElo "2182"]
[BlackElo "2372"]
[Annotator "TA"]
[PlyCount "102"]
[EventDate "2022.10.03"]
[EventType "team-tourn"]
[EventCountry "AUT"]
[SourceTitle "playchess.com"]
[Source "ChessBase"]
[SourceQuality "1"]
[TimeControl "40/5400+30:1800+30"]

{[%evp 16,101,3,6,19,15,12,13,19,17,15,11,18,16,12,12,20,16,19,18,10,2,38,22,24,14,25,12,14,2,8,0,0,0,0,0,18,0,0,-12,-6,-25,-25,-38,-33,-239,-245,-233,-243,-241,-234,-235,-215,-219,-170,-232,-233,-410,-388,-544,-537,-579,-574,-502,-400,-404,-368,-560,-560,-508,-497,-501,-493,-486,-418,-560,-550,-1110,-861,-1856,-1814,-4810,-4802,-29990,-29990,-29991,-29992,-29999]} 1. e4 {[%emt 0:00:01] CB} e5 {[%emt 0:00:13]} 2. Nf3 {[%emt 0:00:07]} Nc6 {[%emt 0:00:14]} 3. Bb5 {[%emt 0:00:07][%cal Bf1b5,Bb5a4,Ba4b3][%mdl 32]} a6 {[%emt 0:00:35]} 4. Ba4 {[%emt 0:00:05]} Nf6 {[%emt 0:00:20]} 5. O-O {[%emt 0:00:17]} Be7 {[%emt 0:00:18]} 6. d3 {[%emt 0:00:18]} b5 {[%emt 0:00:34]} 7. Bb3 {[%emt 0:00:03]} d6 {[%emt 0:00:56]} 8. a3 {[%emt 0:00:06]} O-O {[%emt 0:00:57]} 9. Nc3 {[%emt 0:00:10]} Na5 {[%emt 0:00:26] C77: Ruy Lopez: 3...a6 4 Ba4 Nf6, unusual lines.} 10. Ba2 {[%emt 0:00:07]} Be6 {[%emt 0:00:15]} 11. b4 {[%emt 0:00:19]} Bxa2 {[%emt 0:01:03] The position is equal.} 12. Rxa2 {[%emt 0:00:02]} Nc6 {[%emt 0:00:17]} 13. Bg5 {[%emt 0:00:05]} Qd7 {[%emt 0:08:10]} 14. Bxf6 {[%emt 0:19:01]} Bxf6 {[%emt 0:01:57]} 15. Nd5 {[%emt 0:00:50]} Bd8 {[%emt 0:01:29]} 16. a4 {[%emt 0:03:05] [#] Threatens to win with axb5.} (16. Ra1 {keeps more tension.} Nd4 17. a4 Nxf3+ 18. Qxf3 bxa4 19. Qf5) 16... Ne7 {[%emt 0:03:32] [#]} 17. Nxe7+ $146 {[%emt 0:17:51]} ({Predecessor:} 17. Ne3 Rb8 18. axb5 axb5 19. c3 Qe6 20. Qb1 d5 21. exd5 Nxd5 22. Nxd5 Qxd5 23. Re1 {½-½ (34) Anand,V (2785)-Aronian,L (2804) Bilbao 2014 CBM 163 [CB]}) 17... Bxe7 {[%emt 0:01:06]} 18. Qa1 {[%emt 0:00:48]} Qc6 {[%emt 0:06:49]} 19. Rc1 {[%emt 0:13:17]} Qb7 {[%emt 0:12:35]} 20. Qc3 {[%emt 0:19:55]} Bf6 {[%emt 0:16:15]} 21. axb5 {[%emt 0:05:31]} axb5 {[%emt 0:00:30]} 22. Rca1 {[%emt 0:00:14]} c6 {[%emt 0:05:20]} 23. Ra5 {[%emt 0:03:22]} Rxa5 {[%emt 0:00:42]} 24. Rxa5 {[%emt 0:00:21]} Bd8 {[%emt 0:00:24]} 25. Ra1 {[%emt 0:00:39]} Bb6 {[%emt 0:01:14]} 26. Qa3 {[%emt 0:00:22]} Rb8 {[%emt 0:03:38]} 27. Qa6 {[%emt 0:06:43] [#] And now Qxb7 would win.} Qc7 {[%emt 0:00:49]} 28. h3 {[%emt 0:01:22]} g6 {[%emt 0:00:45]} 29. g3 {[%emt 0:03:19]} c5 {[%emt 0:08:57]} 30. c3 {[%emt 0:02:52] This move loses the game for White.} (30. Qxb5 $15 cxb4 31. Qc4) 30... cxb4 $19 {[%emt 0:01:45]} 31. cxb4 {[%emt 0:01:36]} Qc2 $1 {[%emt 0:00:14][%csl LRd3,LRf2]} 32. Ra2 {[%emt 0:01:29]} Qxd3 {[%emt 0:01:14]} 33. Kg2 {[%emt 0:00:09]} Qxe4 {[%emt 0:01:59]} 34. Qxb5 {[%emt 0:00:19]} Qb7 {[%emt 0:01:32] Against Qd7} 35. Re2 {[%emt 0:00:38]} (35. h4 $142) 35... e4 {[%emt 0:01:06]} 36. Ng5 {[%emt 0:00:04]} (36. Nh2) 36... d5 {[%emt 0:00:42] Hoping for ...h6.} 37. Rc2 {[%emt 0:00:59]} (37. Rd2 {is a better defense.} h6 38. Nxf7 Qxf7 39. Qxd5) 37... h6 {[%emt 0:00:54]} 38. Rc6 {[%emt 0:00:04][%cal Og5f7]} hxg5 {[%emt 0:01:29]} 39. Qxd5 {[%emt 0:00:04]} Kh7 {[%emt 0:03:16]} 40. Qxe4 {[%emt 0:00:12]} Qd7 {[%emt 0:02:39]} 41. Qf3 {[%emt 0:14:44]} (41. h4 $142 gxh4 42. Qxh4+ Kg8 43. Qe4) 41... Bd4 {[%emt 0:02:14]} 42. Rc4 {[%emt 0:00:43]} Kg7 {[%emt 0:01:35]} 43. Qe4 {[%emt 0:01:08]} Bf6 {[%emt 0:01:17]} 44. Qf3 {[%emt 0:11:17]} Rh8 {[%emt 0:02:35]} 45. Rg4 {[%emt 0:00:06]} Rc8 {[%emt 0:01:00] aiming for ...Rc3.} 46. Qe4 {[%emt 0:01:12]} Qd2 {[%emt 0:02:47]} 47. h4 {[%emt 0:02:49]} Rc2 {[%emt 0:01:30]} 48. Qf3 {[%emt 0:00:05]} Bd4 {[%emt 0:02:49]} 49. Rxg5 {[%emt 0:01:37]} Bxf2 {[%emt 0:02:51] Black mates.} 50. Kh3 {[%emt 0:01:47]} Be3 {[%emt 0:01:36]} 51. Rg4 {[%emt 0:01:11]} Qh2# {[%emt 0:00:06] Weighted Error Value: White=0.53/Black=0.13 (very precise)} 0-1

[Event "37th ECCC 2022"]
[Site "Mayrhofen"]
[Date "2022.10.06"]
[Round "4.66"]
[White "Nemec, Jachym"]
[Black "Geirnaert, Steven"]
[Result "1/2-1/2"]
[ECO "E12"]
[WhiteElo "2345"]
[BlackElo "2399"]
[Annotator "TA"]
[PlyCount "102"]
[EventDate "2022.10.03"]
[EventType "team-tourn"]
[EventCountry "AUT"]
[SourceTitle "playchess.com"]
[Source "ChessBase"]
[SourceQuality "1"]
[TimeControl "40/5400+30:1800+30"]

{[%evp 14,102,30,39,41,24,31,28,26,13,15,27,19,12,23,12,27,19,19,22,26,14,37,47,35,-29,-15,-12,-17,-5,16,62,46,53,60,68,55,65,57,78,92,58,30,0,88,98,240,237,300,176,167,160,168,143,150,110,111,121,104,28,28,35,44,39,41,0,0,0,34,35,995,150,141,143,122,12,12,8,12,0,0,0,0,0,0,0,0,0,0,0,0]} 1. d4 {[%emt 0:00:03]} Nf6 {[%emt 0:00:05]} 2. c4 {[%emt 0:00:05]} e6 {[%emt 0:00:04]} 3. Nf3 {[%emt 0:00:04]} b6 {[%emt 0:00:08]} 4. a3 {[%emt 0:00:05]} Bb7 {[%emt 0:00:07]} 5. Nc3 {[%emt 0:00:06]} Ne4 {[%emt 0:00:08]} 6. Nxe4 {[%emt 0:00:28]} Bxe4 {[%emt 0:00:06]} 7. Nd2 {[%emt 0:00:09]} Bg6 {[%emt 0:00:13]} 8. g3 {[%emt 0:00:08]} Nc6 {[%emt 0:00:17] E12: Queen's Indian: Unusual White 4th moves, 4 a3, 4 Nc3 Bb7 5 a3 and 4 Nc3 Bb7 .} 9. e3 {[%emt 0:00:05][%cal Be2e3,Be3e4][%mdl 32]} e5 {[%emt 0:00:10]} 10. d5 {[%emt 0:00:05] Threatens to win with h4.} Na5 {[%emt 0:00:09] White has an edge.} 11. Bg2 {[%emt 0:01:17]} Bd6 {[%emt 0:00:34]} 12. b4 {[%emt 0:00:13]} Nb7 {[%emt 0:00:04] [#]} 13. h4 $146 {[%emt 0:00:11] Threatening h5.} ({Predecessor:} 13. Bb2 O-O 14. O-O a5 15. Qb3 Qe7 16. Bc3 Ra7 17. e4 axb4 18. axb4 Rfa8 19. Rxa7 Rxa7 {1-0 (57) Korobov,A (2687)-Rapport,R (2736) Hengshui 2019}) 13... h6 {[%emt 0:00:09]} 14. e4 {[%emt 0:00:45]} a5 {[%emt 0:01:41]} 15. c5 {[%emt 0:01:55]} bxc5 {[%emt 0:03:16]} 16. b5 {[%emt 0:00:08]} O-O {[%emt 0:04:42]} 17. O-O {[%emt 0:00:10]} f5 {[%emt 0:03:11]} 18. exf5 {[%emt 0:01:02]} Bxf5 {[%emt 0:00:24]} 19. Re1 {[%emt 0:04:59]} (19. Nc4 $14) 19... Qf6 {[%emt 0:19:01]} 20. Bb2 {[%emt 0:03:37]} Bd3 {[%emt 0:06:17][%csl LRb5,LRf2]} 21. f4 {[%emt 0:11:19]} Qg6 {[%emt 0:12:17]} (21... Bxb5 22. fxe5 Qf2+ 23. Kh2 $16) (21... c4 $5 {[%cal Rf6g6]} 22. Kh2 Qg6 23. fxe5 Bc5 $17) 22. fxe5 {[%emt 0:01:27]} Qxg3 {[%emt 0:14:21]} 23. Nf3 $1 {[%emt 0:06:36]} Bxb5 {[%emt 0:02:23]} (23... Bxe5 $2 24. Rxe5 Bg6 25. Re7 $18) 24. exd6 {[%emt 0:01:37]} Nxd6 {[%emt 0:00:13]} 25. Be5 {[%emt 0:07:43]} (25. Kh1 Nc4 26. Bc3 Rf4 $15) 25... Qg4 {[%emt 0:03:32]} 26. Rc1 {[%emt 0:10:32]} Ba4 {[%emt 0:06:49]} 27. Qd3 {[%emt 0:00:33] Really sharp!} Bb5 {[%emt 0:02:33]} 28. Qd1 {[%emt 0:05:48]} ({Better is} 28. Qe3 $11) 28... Ba4 $1 $16 {[%emt 0:00:05]} 29. Qe2 {[%emt 0:01:07]} Rae8 {[%emt 0:07:41]} (29... Bb5 $16 {might work better.} 30. Qf2 (30. Qe3 Nc4 $11) 30... Nc4) 30. Rxc5 $18 {[%emt 0:04:19]} Rf4 {[%emt 0:04:19]} (30... Bb5 $2 31. Qe3) 31. Qf1 {[%emt 0:07:56]} (31. Rxc7 $6 Nf7 $16) (31. Rxa5 Rc4 32. Qf2 Qg6 33. Bxd6 cxd6 $18) (31. Qd3 $142) 31... Re4 {[%emt 0:04:09]} 32. Rxe4 {[%emt 0:05:10]} (32. Rxc7 R4xe5 33. Nxe5 (33. Rxe5 Rxe5 34. Nxe5 Qd4+ 35. Qf2 Qxe5 $16) 33... Rxe5 34. Rxe5 Qd4+ 35. Qf2 Qxe5 $16) 32... Qxe4 {[%emt 0:00:02]} 33. Bxd6 {[%emt 0:12:33]} cxd6 {[%emt 0:00:02]} 34. Rc4 {[%emt 0:00:30]} Qe3+ {[%emt 0:00:06]} 35. Qf2 $1 {[%emt 0:00:09]} Qxa3 {[%emt 0:00:13]} 36. Rg4 {[%emt 0:01:18]} (36. Nd4 $16) 36... Bd1 $1 $11 {[%emt 0:06:30]} 37. Kh2 {[%emt 0:03:35][%cal Of2d4] And now Qd4! would win.} Qe3 {[%emt 0:01:39]} 38. Qb2 {[%emt 0:05:22][%csl Gg4][%cal Rb2g7]} Re7 {[%emt 0:00:17]} 39. Qb8+ {[%emt 0:01:27]} (39. Rg3 $5 {[%cal Rb2b8]} Rf7 40. Ng5 $1 $14) 39... Re8 {[%emt 0:00:06]} 40. Qb2 {[%emt 0:00:16][%csl Gg4][%cal Rb2g7]} Re7 {[%emt 0:00:08]} 41. Rg3 {[%emt 0:33:12]} Qe4 $2 {[%emt 0:14:35][%mdl 8192] [#]} (41... Rf7 $14) 42. Qb8+ $2 {[%emt 0:00:00]} (42. Rxg7+ $3 $18 {[%mdl 512]} Rxg7 43. Qb8+ Kf7 44. Ng5+ $1 {[%mdl 512]} Rxg5 45. Bxe4) 42... Re8 $16 {[%emt 0:00:05]} 43. Qxd6 {[%emt 0:00:00]} ({Don't do} 43. Qb2 $6 Qe7 $14) 43... Bxf3 {[%emt 0:00:39] [#]} 44. Rxf3 {[%emt 0:00:00]} ({White should try} 44. Qf6 $1 $16 {[%csl Gg3][%cal Rf6g7]} Qe5 45. Qxe5 (45. Qxf3 a4 $16) 45... Rxe5 46. Bxf3 (46. Rxf3 Rxd5 47. Kg3 Rd4 $16)) 44... Qxh4+ $11 {[%emt 0:00:32] The position is equal.} 45. Rh3 {[%emt 0:00:00]} Qg4 {[%emt 0:07:54]} 46. Bf3 {[%emt 0:00:00]} Re2+ {[%emt 0:05:46]} 47. Bxe2 {[%emt 0:00:00]} Qxe2+ {[%emt 0:00:05]} 48. Kg3 {[%emt 0:00:00] Black must now prevent Qb8+.} Qe3+ {[%emt 0:00:19]} 49. Kg4 {[%emt 0:00:00]} Qe2+ {[%emt 0:00:33]} 50. Kg3 {[%emt 0:00:00] aiming for Qb8+.} Qe3+ {[%emt 0:00:12]} 51. Kg4 {[%emt 0:00:00]} Qe2+ {[%emt 0:00:10] Weighted Error Value: White=0.29 (precise) /Black=0.11 (very precise)} 1/2-1/2